[Event "Italian Women Championship 2023"]
[Site "Brescia"]
[Date "2023.12.04"]
[Round "2.4"]
[White "Rubinshtein, Kamilla"]
[Black "Cassi, Elisa"]
[Result "0-1"]
[ECO "B13"]
[WhiteElo "1921"]
[BlackElo "1951"]
[Annotator "NA"]
[PlyCount "84"]
[EventDate "2023.12.03"]
[EventType "tourn"]
[EventCountry "ITA"]
[SourceTitle "playchess.com"]
[Source "ChessBase"]
[SourceQuality "1"]
[TimeControl "40/6000+30:20/3000+30:900+30"]

1. e4 {[%emt 0:00:05]} c6 {[%emt 0:00:05]} 2. d4 {[%emt 0:00:15]} d5 {[%emt 0:00:04]} 3. exd5 {[%emt 0:00:22]} cxd5 {[%emt 0:00:05]} 4. Nf3 {[%emt 0:00:11]} Nf6 {[%emt 0:02:41]} 5. Ne5 {[%emt 0:01:20]} a6 {[%emt 0:07:03]} 6. Bd3 {[%emt 0:11:55]} Nc6 {[%emt 0:01:51]} 7. Nxc6 {[%emt 0:05:52]} bxc6 {[%emt 0:00:06]} 8. h3 {[%emt 0:01:34]} e6 {[%emt 0:05:32]} 9. O-O {[%emt 0:09:17]} c5 {[%emt 0:00:58]} 10. c3 {[%emt 0:04:44]} Qb6 {[%emt 0:08:25]} 11. a4 {[%emt 0:32:40]} cxd4 {[%emt 0:10:21]} 12. cxd4 {[%emt 0:00:30]} Bd7 {[%emt 0:01:20]} 13. Qe2 {[%emt 0:05:20]} Be7 {[%emt 0:05:48]} 14. Nc3 {[%emt 0:01:35]} Qxd4 {[%emt 0:09:23]} 15. Bxa6 {[%emt 0:03:12]} Qb6 {[%emt 0:00:52]} 16. Bd3 {[%emt 0:06:24]} O-O {[%emt 0:00:31]} 17. Nb5 {[%emt 0:01:15]} Bxb5 {[%emt 0:13:07]} 18. Bxb5 {[%emt 0:00:07]} Bb4 {[%emt 0:00:56]} 19. Bf4 {[%emt 0:03:45]} Ne4 {[%emt 0:01:46]} 20. Rac1 {[%emt 0:06:16]} Rfc8 {[%emt 0:03:04]} 21. Be3 {[%emt 0:03:34]} Qd6 {[%emt 0:06:45]} 22. Rfd1 {[%emt 0:02:29]} f5 {[%emt 0:01:08]} 23. f3 {[%emt 0:03:45]} Ng3 {[%emt 0:04:53]} 24. Qd3 {[%emt 0:00:23]} f4 {[%emt 0:00:26]} 25. Bf2 {[%emt 0:00:41]} Bc5 {[%emt 0:04:58]} 26. Bxc5 {[%emt 0:03:18]} Rxc5 {[%emt 0:00:03]} 27. Rxc5 {[%emt 0:00:34]} Qxc5+ {[%emt 0:00:05]} 28. Qd4 {[%emt 0:00:37]} Qd6 {[%emt 0:05:13]} 29. Rc1 {[%emt 0:01:43]} Nf5 {[%emt 0:00:39]} 30. Rc6 {[%emt 0:01:09]} Nxd4 {[%emt 0:04:33]} 31. Rxd6 {[%emt 0:00:02]} Rc8 {[%emt 0:00:12]} 32. b4 {[%emt 0:00:59]} Kf7 {[%emt 0:03:31]} 33. Bd3 {[%emt 0:00:12]} Rc3 {[%emt 0:01:31]} 34. Bxh7 {[%emt 0:00:49]} g6 {[%emt 0:04:14]} 35. Rd7+ {[%emt 0:00:15]} Kf6 {[%emt 0:00:01]} 36. h4 {[%emt 0:00:18]} Nf5 {[%emt 0:02:02]} 37. a5 {[%emt 0:00:56]} Ng3 {[%emt 0:01:12]} 38. Kh2 {[%emt 0:00:10]} Rc1 {[%emt 0:02:06]} 39. Kh3 {[%emt 0:00:02]} Nf5 {[%emt 0:00:45]} 40. Kg4 {[%emt 0:01:55]} Rh1 {[%emt 0:01:06]} 41. Rf7+ {[%emt 0:13:24]} Kxf7 {[%emt 0:00:17]} 42. Kxf4 {[%emt 0:00:04]} Kf6 {[%emt 0:03:26]} 0-1

[Event "Italian Women Championship 2023"]
[Site "Brescia"]
[Date "2023.12.05"]
[Round "3.1"]
[White "Cassi, Elisa"]
[Black "Sedina, Elena"]
[Result "1/2-1/2"]
[ECO "A07"]
[WhiteElo "1951"]
[BlackElo "2169"]
[Annotator "RC"]
[PlyCount "165"]
[EventDate "2023.12.03"]
[EventType "tourn"]
[EventCountry "ITA"]
[SourceTitle "playchess.com"]
[Source "ChessBase"]
[SourceQuality "1"]
[TimeControl "40/6000+30:20/3000+30:900+30"]

1. Nf3 {[%emt 0:00:04]} d5 {[%emt 0:03:33]} 2. g3 {[%emt 0:00:07]} Bg4 {[%emt 0:01:39]} 3. Bg2 {[%emt 0:00:08]} e6 {[%emt 0:00:42]} 4. O-O {[%emt 0:00:39]} Nf6 {[%emt 0:00:59]} 5. h3 {[%emt 0:02:19]} Bh5 {[%emt 0:02:14]} 6. c4 {[%emt 0:04:14]} c6 {[%emt 0:01:29]} 7. d4 {[%emt 0:02:07]} Nbd7 {[%emt 0:04:35]} 8. cxd5 {[%emt 0:00:29]} exd5 {[%emt 0:31:48]} 9. Ne5 {[%emt 0:00:21]} Bg6 {[%emt 0:12:24]} 10. Nc3 {[%emt 0:09:59]} Be7 {[%emt 0:12:45]} 11. f4 {[%emt 0:01:32]} Be4 {[%emt 0:01:50]} 12. Nxe4 {[%emt 0:02:56]} Nxe4 {[%emt 0:00:05]} 13. Bxe4 {[%emt 0:02:37]} dxe4 {[%emt 0:01:39]} 14. Qb3 {[%emt 0:11:01]} Nxe5 {[%emt 0:00:37]} 15. dxe5 {[%emt 0:02:49]} Qd7 {[%emt 0:14:10]} 16. Kg2 {[%emt 0:02:12]} c5 {[%emt 0:00:07]} 17. Rd1 {[%emt 0:11:19]} Qc6 {[%emt 0:00:09]} 18. Be3 {[%emt 0:00:47]} b6 {[%emt 0:10:42]} 19. a4 {[%emt 0:10:57]} Rc8 {[%emt 0:01:17]} 20. Qb5 {[%emt 0:02:24]} f5 {[%emt 0:04:44]} 21. Qc4 {[%emt 0:12:55]} h5 {[%emt 0:00:11]} 22. Rd2 {[%emt 0:06:27]} h4 {[%emt 0:03:14]} 23. Rad1 {[%emt 0:01:14]} Qg6 {[%emt 0:00:29]} 24. Bf2 {[%emt 0:09:47]} e3 {[%emt 0:00:15]} 25. Rd6 {[%emt 0:00:16]} Bxd6 {[%emt 0:00:30]} 26. Rxd6 {[%emt 0:00:06]} Qf7 {[%emt 0:00:44]} 27. Qb5+ {[%emt 0:07:20]} Kf8 {[%emt 0:00:03]} 28. Bxe3 {[%emt 0:00:20]} hxg3 {[%emt 0:00:28]} 29. e6 {[%emt 0:01:56]} Qb7+ {[%emt 0:01:00]} 30. Kxg3 {[%emt 0:00:42]} Qe7 {[%emt 0:00:05]} 31. Qd3 {[%emt 0:01:45]} Qh4+ {[%emt 0:00:12]} 32. Kg2 {[%emt 0:00:17]} Qxh3+ {[%emt 0:00:08]} 33. Kf2 {[%emt 0:00:08]} Re8 {[%emt 0:01:35]} 34. a5 {[%emt 0:04:42]} Qh4+ {[%emt 0:00:33]} 35. Kf1 {[%emt 0:00:11]} Qh1+ {[%emt 0:00:26]} 36. Bg1 {[%emt 0:00:12]} Qh3+ {[%emt 0:00:36]} 37. Qxh3 {[%emt 0:00:18]} Rxh3 {[%emt 0:00:01]} 38. axb6 {[%emt 0:00:29]} axb6 {[%emt 0:00:00]} 39. Rxb6 {[%emt 0:00:10]} Rh6 {[%emt 0:01:17]} 40. Bxc5+ {[%emt 0:01:14]} Kg8 {[%emt 0:00:00]} 41. b4 {[%emt 0:03:29]} Rhxe6 {[%emt 0:07:24]} 42. Rxe6 {[%emt 0:00:57]} Rxe6 {[%emt 0:02:24]} 43. b5 {[%emt 0:00:52]} Re4 {[%emt 0:14:38]} 44. e3 {[%emt 0:09:25]} Kf7 {[%emt 0:08:37]} 45. Ke2 {[%emt 0:02:24]} Rc4 {[%emt 0:00:20]} 46. Bd4 {[%emt 0:01:25]} Rb4 {[%emt 0:05:34]} 47. b6 {[%emt 0:00:28]} g6 {[%emt 0:00:54]} 48. Kd3 {[%emt 0:01:12]} Ke6 {[%emt 0:00:02]} 49. Bc5 {[%emt 0:02:01]} Rb1 {[%emt 0:01:55]} 50. Kc4 {[%emt 0:00:29]} Kd7 {[%emt 0:00:16]} 51. Kd5 {[%emt 0:00:48]} Rb5 {[%emt 0:00:05]} 52. Kc4 {[%emt 0:02:31]} Kc6 {[%emt 0:00:04]} 53. Bd4 {[%emt 0:00:10]} Rb1 {[%emt 0:00:05]} 54. Kc3 {[%emt 0:02:06]} Kd5 {[%emt 0:00:18]} 55. Kd3 {[%emt 0:00:34]} Rb3+ {[%emt 0:02:50]} 56. Kc2 {[%emt 0:01:03]} Kc4 {[%emt 0:00:04]} 57. Kd2 {[%emt 0:02:11]} Rb1 {[%emt 0:05:33]} 58. Kc2 {[%emt 0:00:39]} Rb5 {[%emt 0:00:04]} 59. Kd2 {[%emt 0:01:19]} Rd5 {[%emt 0:00:43]} 60. Kc2 {[%emt 0:02:56]} Rb5 {[%emt 0:05:12]} 61. Kd2 {[%emt 0:16:55]} Rd5 {[%emt 0:16:08]} 62. Kc2 {[%emt 0:00:09]} Rd7 {[%emt 0:02:12]} 63. Be5 {[%emt 0:02:34]} Kc5 {[%emt 0:00:25]} 64. Bc7 {[%emt 0:00:09]} Kc6 {[%emt 0:00:04]} 65. Kc3 {[%emt 0:01:06]} Rd1 {[%emt 0:00:00]} 66. Kc4 {[%emt 0:00:00]} Rd7 {[%emt 0:00:00]} 67. Kc3 {[%emt 0:00:00]} Re7 {[%emt 0:00:00]} 68. Kd4 {[%emt 0:00:00]} Re4+ {[%emt 0:00:00]} 69. Kd3 {[%emt 0:00:00]} Rb4 {[%emt 0:00:00]} 70. Kc3 {[%emt 0:00:00]} Ra4 {[%emt 0:00:00]} 71. Kd3 {[%emt 0:00:00]} Rb4 {[%emt 0:00:00]} 72. Kc3 {[%emt 0:00:00]} Rb1 {[%emt 0:00:00]} 73. Kc4 {[%emt 0:00:00]} Ra1 {[%emt 0:00:00]} 74. Kd4 {[%emt 0:00:00]} Ra5 {[%emt 0:01:26]} 75. Kc4 {[%emt 0:00:00]} Ra3 {[%emt 0:00:41]} 76. Kd4 {[%emt 0:00:00]} Rb3 {[%emt 0:00:24]} 77. Bd8 {[%emt 0:00:00]} Rb5 {[%emt 0:03:20]} 78. Bc7 {[%emt 0:00:00]} Ra5 {[%emt 0:00:04]} 79. Kd3 {[%emt 0:00:44]} Rd5+ {[%emt 0:00:36]} 80. Kc3 {[%emt 0:00:49]} Rd1 {[%emt 0:00:13]} 81. Kc4 {[%emt 0:01:12]} Rd7 {[%emt 0:00:12]} 82. Kc3 {[%emt 0:01:38]} Kb5 {[%emt 0:01:10]} 83. Kb3 {[%emt 0:02:25]} 1/2-1/2

[Event "Italian Women Championship 2023"]
[Site "Brescia"]
[Date "2023.12.05"]
[Round "3.2"]
[White "Brunello, Marina"]
[Black "Rubinshtein, Kamilla"]
[Result "1-0"]
[ECO "B85"]
[WhiteElo "2343"]
[BlackElo "1921"]
[Annotator "RC"]
[PlyCount "91"]
[EventDate "2023.12.03"]
[EventType "tourn"]
[EventCountry "ITA"]
[SourceTitle "playchess.com"]
[Source "ChessBase"]
[SourceQuality "1"]
[TimeControl "40/6000+30:20/3000+30:900+30"]

1. e4 {[%emt 0:02:37]} c5 {[%emt 0:00:11]} 2. Nf3 {[%emt 0:00:31]} Nc6 {[%emt 0:00:34]} 3. d4 {[%emt 0:00:03]} cxd4 {[%emt 0:00:17]} 4. Nxd4 {[%emt 0:00:05]} e6 {[%emt 0:00:13]} 5. Nc3 {[%emt 0:01:43]} Qc7 {[%emt 0:00:28]} 6. Be2 {[%emt 0:04:58]} a6 {[%emt 0:00:56]} 7. Be3 {[%emt 0:00:29]} Nf6 {[%emt 0:00:48]} 8. O-O {[%emt 0:00:08]} Be7 {[%emt 0:00:27]} 9. Kh1 {[%emt 0:04:13]} O-O {[%emt 0:00:30]} 10. f4 {[%emt 0:00:13]} d6 {[%emt 0:00:24]} 11. Qe1 {[%emt 0:00:13]} Nxd4 {[%emt 0:02:26]} 12. Bxd4 {[%emt 0:00:10]} b5 {[%emt 0:01:06]} 13. a3 {[%emt 0:00:08]} Bb7 {[%emt 0:00:12]} 14. Qg3 {[%emt 0:00:04]} Bc6 {[%emt 0:00:51]} 15. Rae1 {[%emt 0:02:26]} Rad8 {[%emt 0:02:50]} 16. Bd3 {[%emt 0:04:58]} Qd7 {[%emt 0:07:13]} 17. Re2 {[%emt 0:07:51]} Nh5 {[%emt 0:09:05]} 18. Qg4 {[%emt 0:11:06]} e5 {[%emt 0:19:48]} 19. Qxh5 {[%emt 0:16:19]} exd4 {[%emt 0:05:06]} 20. Nd5 {[%emt 0:00:05]} Bxd5 {[%emt 0:05:11]} 21. exd5 {[%emt 0:01:41]} g6 {[%emt 0:02:55]} 22. Qh6 {[%emt 0:00:40]} Rfe8 {[%emt 0:05:16]} 23. f5 {[%emt 0:03:43]} Bf8 {[%emt 0:02:44]} 24. Rxe8 {[%emt 0:01:08]} Qxe8 {[%emt 0:02:45]} 25. Qh4 {[%emt 0:13:32]} Qe7 {[%emt 0:06:24]} 26. Qxd4 {[%emt 0:04:07]} Qe5 {[%emt 0:04:17]} 27. Qb6 {[%emt 0:06:28]} Be7 {[%emt 0:05:05]} 28. b4 {[%emt 0:07:22]} Bg5 {[%emt 0:06:45]} 29. Qxa6 {[%emt 0:03:27]} Bf4 {[%emt 0:01:16]} 30. Qxb5 {[%emt 0:00:36]} Bxh2 {[%emt 0:02:35]} 31. Qc4 {[%emt 0:00:23]} Bg3 {[%emt 0:01:11]} 32. Qg4 {[%emt 0:00:21]} Ra8 {[%emt 0:01:53]} 33. Qf3 {[%emt 0:03:02]} g5 {[%emt 0:01:48]} 34. f6 {[%emt 0:01:01]} Qf4 {[%emt 0:07:16]} 35. Qxf4 {[%emt 0:02:59]} Bxf4 {[%emt 0:00:20]} 36. b5 {[%emt 0:01:59]} Be3 {[%emt 0:00:25]} 37. Re1 {[%emt 0:00:28]} Bd4 {[%emt 0:02:13]} 38. g4 {[%emt 0:01:01]} Bxf6 {[%emt 0:03:32]} 39. b6 {[%emt 0:00:31]} Rb8 {[%emt 0:00:15]} 40. Rb1 {[%emt 0:00:20]} Bd4 {[%emt 0:02:09]} 41. b7 {[%emt 0:50:32]} Kg7 {[%emt 0:04:40]} 42. Bf5 {[%emt 0:00:00]} h6 {[%emt 0:01:39]} 43. Bc8 {[%emt 0:00:00]} h5 {[%emt 0:01:53]} 44. gxh5 {[%emt 0:00:00]} Kh6 {[%emt 0:00:29]} 45. Rb4 {[%emt 0:00:00]} Bc5 {[%emt 0:00:49]} 46. Ra4 {[%emt 0:00:00]} 1-0

[Event "Italian Women Championship 2023"]
[Site "Brescia"]
[Date "2023.12.05"]
[Round "3.3"]
[White "Zimina, Olga"]
[Black "Sala, Giulia"]
[Result "1-0"]
[ECO "B08"]
[WhiteElo "2277"]
[BlackElo "2045"]
[Annotator "RC"]
[PlyCount "57"]
[EventDate "2023.12.03"]
[EventType "tourn"]
[EventCountry "ITA"]
[SourceTitle "playchess.com"]
[Source "ChessBase"]
[SourceQuality "1"]
[TimeControl "40/6000+30:20/3000+30:900+30"]

1. d4 {[%emt 0:00:14]} Nf6 {[%emt 0:00:12]} 2. Nf3 {[%emt 0:00:09]} g6 {[%emt 0:00:12]} 3. Nbd2 {[%emt 0:00:05]} d5 {[%emt 0:00:14]} 4. e3 {[%emt 0:00:06]} Bg7 {[%emt 0:00:45]} 5. Bd3 {[%emt 0:02:30]} O-O {[%emt 0:01:56]} 6. O-O {[%emt 0:00:06]} c6 {[%emt 0:04:41]} 7. e4 {[%emt 0:02:46]} dxe4 {[%emt 0:03:26]} 8. Nxe4 {[%emt 0:00:19]} Nbd7 {[%emt 0:01:44]} 9. c3 {[%emt 0:00:41]} Nxe4 {[%emt 0:03:15]} 10. Bxe4 {[%emt 0:00:02]} c5 {[%emt 0:00:21]} 11. Bc2 {[%emt 0:07:57]} cxd4 {[%emt 0:08:10]} 12. Nxd4 {[%emt 0:00:15]} a6 {[%emt 0:07:31]} 13. Bg5 {[%emt 0:01:06]} h6 {[%emt 0:01:39]} 14. Bh4 {[%emt 0:00:53]} Re8 {[%emt 0:01:52]} 15. Re1 {[%emt 0:03:44]} Qb6 {[%emt 0:05:53]} 16. Bxe7 {[%emt 0:18:49]} Qxb2 {[%emt 0:05:32]} 17. Re3 {[%emt 0:02:19]} Rxe7 {[%emt 0:14:45]} 18. Rxe7 {[%emt 0:00:19]} Qxc3 {[%emt 0:00:36]} 19. Bb3 {[%emt 0:21:49]} Nc5 {[%emt 0:21:14]} 20. Bxf7+ {[%emt 0:26:05]} Kf8 {[%emt 0:01:03]} 21. Rc7 {[%emt 0:01:01]} Bxd4 {[%emt 0:04:56]} 22. Rc1 {[%emt 0:00:20]} Qb2 {[%emt 0:04:16]} 23. Rc2 {[%emt 0:05:34]} Qb6 {[%emt 0:01:44]} 24. R2xc5 {[%emt 0:00:09]} Qd6 {[%emt 0:10:14]} 25. Rxc8+ {[%emt 0:01:11]} Rxc8 {[%emt 0:00:39]} 26. Rxc8+ {[%emt 0:00:06]} Kxf7 {[%emt 0:00:06]} 27. Qf3+ {[%emt 0:00:05]} Ke6 {[%emt 0:00:34]} 28. Re8+ {[%emt 0:00:14]} Kd7 {[%emt 0:00:15]} 29. Qf7+ {[%emt 0:00:06]} 1-0

[Event "Italian Women Championship 2023"]
[Site "Brescia"]
[Date "2023.12.05"]
[Round "3.4"]
[White "Gueci, Tea"]
[Black "Martinelli, Valeria"]
[Result "1-0"]
[ECO "C41"]
[WhiteElo "2160"]
[BlackElo "1976"]
[Annotator "RC"]
[PlyCount "81"]
[EventDate "2023.12.03"]
[EventType "tourn"]
[EventCountry "ITA"]
[SourceTitle "playchess.com"]
[Source "ChessBase"]
[SourceQuality "1"]
[TimeControl "40/6000+30:20/3000+30:900+30"]

1. e4 {[%emt 0:00:03]} d6 {[%emt 0:04:10]} 2. d4 {[%emt 0:00:04]} Nf6 {[%emt 0:00:09]} 3. Nc3 {[%emt 0:00:26]} e5 {[%emt 0:00:19]} 4. Nf3 {[%emt 0:00:16]} Nbd7 {[%emt 0:00:16]} 5. Bc4 {[%emt 0:00:23]} Be7 {[%emt 0:00:20]} 6. O-O {[%emt 0:00:18]} O-O {[%emt 0:00:13]} 7. Re1 {[%emt 0:00:20]} c6 {[%emt 0:01:08]} 8. a4 {[%emt 0:00:56]} b6 {[%emt 0:01:41]} 9. Ba2 {[%emt 0:04:17]} Bb7 {[%emt 0:01:20]} 10. h3 {[%emt 0:07:27]} Qc7 {[%emt 0:04:51]} 11. Rb1 {[%emt 0:08:27]} a6 {[%emt 0:09:34]} 12. Bg5 {[%emt 0:13:07]} Rfe8 {[%emt 0:09:02]} 13. dxe5 {[%emt 0:08:19]} dxe5 {[%emt 0:11:09]} 14. Qe2 {[%emt 0:00:05]} Nf8 {[%emt 0:10:54]} 15. Be3 {[%emt 0:12:30]} Bc8 {[%emt 0:08:05]} 16. Bxf7+ {[%emt 0:14:33]} Kxf7 {[%emt 0:00:04]} 17. Qc4+ {[%emt 0:00:06]} Be6 {[%emt 0:01:39]} 18. Ng5+ {[%emt 0:00:12]} Kg8 {[%emt 0:00:41]} 19. Nxe6 {[%emt 0:01:07]} Nxe6 {[%emt 0:00:04]} 20. Qxe6+ {[%emt 0:00:05]} Kh8 {[%emt 0:00:25]} 21. Qc4 {[%emt 0:01:51]} Qb7 {[%emt 0:04:06]} 22. b4 {[%emt 0:01:24]} b5 {[%emt 0:03:26]} 23. Qb3 {[%emt 0:04:28]} Rf8 {[%emt 0:06:20]} 24. Red1 {[%emt 0:03:50]} Rad8 {[%emt 0:04:13]} 25. f3 {[%emt 0:01:36]} Bd6 {[%emt 0:04:12]} 26. axb5 {[%emt 0:01:21]} cxb5 {[%emt 0:01:14]} 27. Kh2 {[%emt 0:06:09]} Rfe8 {[%emt 0:08:12]} 28. Rd3 {[%emt 0:02:26]} Nh5 {[%emt 0:01:32]} 29. Rbd1 {[%emt 0:00:47]} Qe7 {[%emt 0:00:30]} 30. Ne2 {[%emt 0:03:48]} Bc7 {[%emt 0:05:27]} 31. Bc5 {[%emt 0:02:32]} Qf6 {[%emt 0:00:49]} 32. Rd7 {[%emt 0:00:46]} Qg6 {[%emt 0:06:26]} 33. Bf2 {[%emt 0:05:00]} h6 {[%emt 0:02:09]} 34. R1d3 {[%emt 0:00:32]} Rxd7 {[%emt 0:01:38]} 35. Rxd7 {[%emt 0:00:04]} Bd6 {[%emt 0:00:56]} 36. c3 {[%emt 0:01:54]} Rc8 {[%emt 0:00:13]} 37. Qd1 {[%emt 0:00:20]} Rc6 {[%emt 0:00:48]} 38. Qd5 {[%emt 0:00:12]} Bf8 {[%emt 0:00:05]} 39. Rd8 {[%emt 0:01:00]} Rf6 {[%emt 0:00:26]} 40. Qa8 {[%emt 0:01:57]} Qf7 {[%emt 0:00:30]} 41. Bc5 {[%emt 0:51:02]} 1-0

[Event "Italian Women Championship 2023"]
[Site "Brescia"]
[Date "2023.12.06"]
[Round "4.1"]
[White "Sedina, Elena"]
[Black "Martinelli, Valeria"]
[Result "1-0"]
[ECO "C50"]
[WhiteElo "2169"]
[BlackElo "1976"]
[Annotator "RC"]
[PlyCount "73"]
[EventDate "2023.12.03"]
[EventType "tourn"]
[EventCountry "ITA"]
[SourceTitle "playchess.com"]
[Source "ChessBase"]
[SourceQuality "1"]
[TimeControl "40/6000+30:20/3000+30:900+30"]

1. e4 {[%emt 0:03:03]} e5 {[%emt 0:00:05]} 2. Bc4 {[%emt 0:00:37]} Nc6 {[%emt 0:00:48]} 3. Nf3 {[%emt 0:00:24]} Nf6 {[%emt 0:00:46]} 4. d3 {[%emt 0:03:39]} Bc5 {[%emt 0:00:13]} 5. a4 {[%emt 0:11:16]} a5 {[%emt 0:01:15]} 6. Nc3 {[%emt 0:04:32]} d6 {[%emt 0:02:05]} 7. h3 {[%emt 0:00:32]} h6 {[%emt 0:08:47]} 8. Be3 {[%emt 0:01:22]} Ba7 {[%emt 0:06:45]} 9. Qd2 {[%emt 0:27:45]} Be6 {[%emt 0:23:52]} 10. Bb5 {[%emt 0:08:35]} O-O {[%emt 0:16:09]} 11. Bxc6 {[%emt 0:04:51]} bxc6 {[%emt 0:00:55]} 12. Bxa7 {[%emt 0:06:36]} Rxa7 {[%emt 0:00:04]} 13. d4 {[%emt 0:00:10]} exd4 {[%emt 0:14:22]} 14. Nxd4 {[%emt 0:00:07]} Bd7 {[%emt 0:00:29]} 15. O-O {[%emt 0:00:24]} Rb7 {[%emt 0:06:14]} 16. Rfe1 {[%emt 0:20:05]} Re8 {[%emt 0:11:08]} 17. Re3 {[%emt 0:01:01]} d5 {[%emt 0:05:01]} 18. e5 {[%emt 0:01:38]} Nh7 {[%emt 0:03:05]} 19. Nb3 {[%emt 0:06:39]} Bf5 {[%emt 0:03:03]} 20. g4 {[%emt 0:05:12]} Bc8 {[%emt 0:01:57]} 21. Nxa5 {[%emt 0:00:47]} Rxb2 {[%emt 0:00:43]} 22. Nxc6 {[%emt 0:01:13]} Qh4 {[%emt 0:01:48]} 23. Nxd5 {[%emt 0:00:22]} Bb7 {[%emt 0:01:27]} 24. Nde7+ {[%emt 0:01:01]} Kf8 {[%emt 0:00:44]} 25. Nf5 {[%emt 0:00:07]} Qg5 {[%emt 0:00:20]} 26. Qc3 {[%emt 0:00:12]} Rb6 {[%emt 0:00:19]} 27. Qc5+ {[%emt 0:00:58]} Kg8 {[%emt 0:00:03]} 28. Nfe7+ {[%emt 0:00:23]} Kh8 {[%emt 0:00:13]} 29. a5 {[%emt 0:00:07]} Rb2 {[%emt 0:00:32]} 30. Qc3 {[%emt 0:01:08]} Rb5 {[%emt 0:00:14]} 31. a6 {[%emt 0:00:27]} Ba8 {[%emt 0:00:30]} 32. Qc4 {[%emt 0:00:22]} Rb2 {[%emt 0:01:48]} 33. f4 {[%emt 0:00:38]} Rxc2 {[%emt 0:00:43]} 34. Qxc2 {[%emt 0:00:36]} Qxf4 {[%emt 0:00:05]} 35. Qf2 {[%emt 0:00:15]} Qg5 {[%emt 0:00:31]} 36. Rd1 {[%emt 0:00:49]} h5 {[%emt 0:00:20]} 37. Rg3 {[%emt 0:00:16]} 1-0

[Event "Italian Women Championship 2023"]
[Site "Brescia"]
[Date "2023.12.06"]
[Round "4.2"]
[White "Sala, Giulia"]
[Black "Gueci, Tea"]
[Result "1/2-1/2"]
[ECO "B12"]
[WhiteElo "2045"]
[BlackElo "2160"]
[Annotator "RC"]
[PlyCount "41"]
[EventDate "2023.12.03"]
[EventType "tourn"]
[EventCountry "ITA"]
[SourceTitle "playchess.com"]
[Source "ChessBase"]
[SourceQuality "1"]
[TimeControl "40/6000+30:20/3000+30:900+30"]

1. e4 {[%emt 0:00:03]} c6 {[%emt 0:00:02]} 2. d4 {[%emt 0:00:09]} d5 {[%emt 0:00:03]} 3. e5 {[%emt 0:01:07]} Bf5 {[%emt 0:00:04]} 4. h4 {[%emt 0:00:12]} h5 {[%emt 0:00:04]} 5. Bd3 {[%emt 0:00:07]} Bxd3 {[%emt 0:00:07]} 6. Qxd3 {[%emt 0:00:09]} Qa5+ {[%emt 0:00:08]} 7. Nd2 {[%emt 0:00:29]} e6 {[%emt 0:00:05]} 8. Ne2 {[%emt 0:00:17]} c5 {[%emt 0:00:07]} 9. c4 {[%emt 0:00:56]} cxd4 {[%emt 0:00:05]} 10. O-O {[%emt 0:09:56]} Nc6 {[%emt 0:03:02]} 11. cxd5 {[%emt 0:19:30]} Qxd5 {[%emt 0:03:39]} 12. Nf3 {[%emt 0:01:43]} Rd8 {[%emt 0:10:57]} 13. Bg5 {[%emt 0:15:14]} Be7 {[%emt 0:06:30]} 14. Nf4 {[%emt 0:03:19]} Nxe5 {[%emt 0:08:07]} 15. Nxe5 {[%emt 0:02:36]} Qxe5 {[%emt 0:00:35]} 16. Rfe1 {[%emt 0:00:15]} Qf5 {[%emt 0:17:59]} 17. Qxf5 {[%emt 0:12:40]} exf5 {[%emt 0:00:06]} 18. Rac1 {[%emt 0:05:31]} d3 {[%emt 0:18:17]} 19. Bxe7 {[%emt 0:06:07]} Nxe7 {[%emt 0:05:11]} 20. Rc7 {[%emt 0:00:39]} Rd7 {[%emt 0:00:27]} 21. Rc8+ {[%emt 0:00:37]} 1/2-1/2